fUST/lending_fUST_20250628
["ID","MTS","AMOUNT","RATE_DAILY","PERIOD"]
[368250554,1751073040602,-460.0,0.0002,2]
[368250555,1751073040611,-460.0,0.0002,2]
[368250556,1751073040620,-834.51,0.0002,2]
[368250557,1751073040629,-1911.92,0.0002,2]
[368250558,1751073040639,-613.64,0.0002,2]
[368250559,1751073040648,-460.0,0.0002,2]
[368250560,1751073040657,-460.0,0.0002,2]
[368250561,1751073040666,-598.93,0.0002,2]
[368250562,1751073040675,-2082.43,0.0002,2]
[368250563,1751073040685,-574.78,0.0002,2]
[368250564,1751073040695,-2576.25,0.0002,2]
[368250565,1751073040704,-460.0,0.0002,2]
[368250566,1751073040713,-956.52,0.0002,2]
[368250567,1751073040722,-480.0,0.0002012,2]
[368250568,1751073040734,-8670.32948988,0.00020141,2]
[368250569,1751073040743,-274.0,0.00020164,2]
[368250570,1751073040753,-331.82479,0.00020187,2]
[368250571,1751073040762,-160.0,0.00020265,2]
[368250572,1751073040771,-160.0,0.00020265,2]
[368250573,1751073040780,-214.91804724,0.00020265,2]
[368250574,1751073040790,-160.0,0.00020265,2]
[368250575,1751073040799,-160.0,0.00020265,2]
[368250576,1751073040808,-160.0,0.00020265,2]
[368250577,1751073040817,-847.04181546,0.00020265,2]
[368250578,1751073040826,-836.98798914,0.00020265,2]
[368250579,1751073040836,-230.26210603,0.00020265,2]
[368250580,1751073040845,-213.75309343,0.00020265,2]
[368250581,1751073040854,-12562.41216491,0.00020265,2]
[368250582,1751073040863,-160.0,0.00020265,2]
[368250583,1751073040873,-160.0,0.00020265,2]
[368250584,1751073040884,-160.0,0.00020265,2]
[368250585,1751073040895,-160.0,0.00020265,2]
[368250586,1751073040904,-568.58567561,0.00020272,2]
[368250587,1751073040913,-460.0,0.00020273,2]
[368250588,1751073040923,-154.49102978,0.00020273,2]
[368250589,1751073040932,-460.0,0.00020273,2]
[368250590,1751073040941,-460.0,0.00020273,2]
[368250591,1751073040951,-460.0,0.00020273,2]
[368250592,1751073040960,-460.0,0.00020273,2]
[368250593,1751073040969,-460.0,0.00020273,2]
[368250594,1751073040978,-460.0,0.00020273,2]
[368250595,1751073040988,-460.0,0.00020273,2]
[368250596,1751073040999,-460.0,0.00020273,2]
[368250597,1751073041007,-750.3,0.00020273,2]
[368250598,1751073041016,-520.0,0.00020273,2]
[368250599,1751073041026,-460.0,0.00020273,2]
[368250600,1751073041035,-460.0,0.00020273,2]
[368250601,1751073041044,-460.0,0.00020273,2]
[368250602,1751073041054,-460.0,0.00020273,2]
[368250603,1751073041063,-460.0,0.00020273,2]
[368250604,1751073041072,-549.31081265,0.00020273,2]
[368250605,1751073041082,-460.0,0.00020273,2]
[368250606,1751073041091,-460.0,0.00020273,2]
[368250607,1751073041100,-649.34,0.00020273,2]
[368250608,1751073041109,-1981.49,0.00020273,2]
[368250609,1751073041119,-460.0,0.00020273,2]
[368250610,1751073041128,-790.84,0.00020273,2]
[368250611,1751073041137,-562.1,0.00020273,2]
[368250612,1751073041146,-546.04,0.00020273,2]
[368250613,1751073041155,-460.0,0.00020273,2]
[368250614,1751073041164,-315.99,0.00020273,2]
[368250615,1751073041173,-162.56,0.00020273,2]
[368250616,1751073041182,-1362.65,0.00020273,2]
[368250617,1751073041191,-1983.99,0.00020273,2]
[368250618,1751073041200,-460.0,0.00020273,2]
[368250619,1751073041209,-460.0,0.00020273,2]
[368250620,1751073041219,-745.95,0.00020273,2]
[368250621,1751073041228,-4509.11,0.00020273,2]
[368250622,1751073041237,-460.0,0.00020273,2]
[368250623,1751073041246,-460.0,0.00020273,2]
[368250624,1751073041256,-2649.6,0.00020273,2]
[368250625,1751073041265,-460.0,0.00020273,2]
[368250626,1751073041274,-532.39,0.00020273,2]
[368250627,1751073041283,-460.0,0.00020273,2]
[368250628,1751073041292,-4260.63,0.00020273,2]
[368250629,1751073041302,-548.37,0.00020273,2]
[368250630,1751073041311,-885.19,0.00020273,2]
[368250631,1751073041320,-502.26,0.00020273,2]
[368250632,1751073041328,-1031.43,0.00020273,2]
[368250633,1751073041337,-460.0,0.00020273,2]
[368250634,1751073041346,-460.0,0.00020273,2]
[368250635,1751073041355,-532.31,0.00020273,2]
[368250636,1751073041364,-464.64,0.00020273,2]
[368250637,1751073041373,-497.42,0.00020273,2]
[368250638,1751073041382,-2647.1,0.00020273,2]
[368250639,1751073041391,-1028.19,0.00020273,2]
[368250640,1751073041400,-2435.39,0.00020273,2]
[368250641,1751073041409,-1372.11,0.00020273,2]
[368250642,1751073041418,-514.85,0.00020273,2]
[368250643,1751073041427,-835.97,0.00020273,2]
[368250644,1751073041436,-2961.6,0.00020273,2]
[368250645,1751073041445,-525.47,0.00020273,2]
[368250646,1751073041454,-460.0,0.00020273,2]
[368250647,1751073041463,-1459.3,0.00020273,2]
[368250648,1751073041472,-1530.08,0.00020273,2]
[368250649,1751073041481,-460.0,0.00020273,2]
[368250650,1751073041490,-460.0,0.00020273,2]
[368250651,1751073041499,-482.37,0.00020273,2]
[368250652,1751073041508,-1049.99,0.00020273,2]
[368250653,1751073041517,-460.0,0.00020273,2]
[368250654,1751073041527,-645.83,0.00020273,2]
[368250655,1751073041535,-460.0,0.00020273,2]
[368250656,1751073041545,-1921.92,0.00020273,2]
[368250657,1751073041554,-1535.0,0.00020273,2]
[368250658,1751073041563,-580.56,0.00020273,2]
[368250659,1751073041572,-460.0,0.00020273,2]
[368250660,1751073041582,-460.0,0.00020273,2]
[368250661,1751073041591,-560.03,0.00020273,2]
[368250662,1751073041600,-460.0,0.00020273,2]
[368250663,1751073041609,-460.0,0.00020273,2]
[368250664,1751073041618,-834.51,0.00020273,2]
[368250665,1751073041627,-1911.92,0.00020273,2]
[368250666,1751073041636,-613.64,0.00020273,2]
[368250667,1751073041646,-460.0,0.00020273,2]
[368250668,1751073041655,-460.0,0.00020273,2]
[368250669,1751073041664,-598.93,0.00020273,2]
[368250670,1751073041674,-2082.43,0.00020273,2]
[368250671,1751073041683,-574.78,0.00020273,2]
[368250672,1751073041692,-2576.25,0.00020273,2]
[368250673,1751073041701,-460.0,0.00020273,2]
[368250674,1751073041710,-956.52,0.00020273,2]
[368250675,1751073041719,-1000.0,0.00020278,2]
[368250676,1751073041729,-300.0,0.0002035,2]
[368250677,1751073041742,-8670.32948988,0.00020383,3]
[368250678,1751073041752,-2863.58676186,0.00020447,2]
[368250679,1751073041761,-500.0,0.00020494,2]
[368250680,1751073041770,-460.0,0.00020547,2]
[368250681,1751073041779,-460.0,0.00020547,2]
[368250682,1751073041789,-460.0,0.00020547,2]
[368250683,1751073041798,-460.0,0.00020547,2]
[368250684,1751073041807,-460.0,0.00020547,2]
[368250685,1751073041816,-460.0,0.00020547,2]
[368250686,1751073041826,-460.0,0.00020547,2]
[368250687,1751073041836,-750.3,0.00020547,2]
[368250688,1751073041845,-460.0,0.00020547,2]
[368250689,1751073041854,-460.0,0.00020547,2]
[368250690,1751073041867,-471.83,0.00020547,2]
[368250691,1751073041877,-460.0,0.00020547,2]
[368250692,1751073041886,-460.0,0.00020547,2]
[368250693,1751073041896,-460.0,0.00020547,2]
[368250694,1751073041906,-460.0,0.00020547,2]
[368250695,1751073041915,-649.34,0.00020547,2]
[368250696,1751073041925,-1981.49,0.00020547,2]
[368250697,1751073041934,-460.0,0.00020547,2]
[368250698,1751073041943,-790.84,0.00020547,2]
[368250699,1751073041952,-562.1,0.00020547,2]
[368250700,1751073041962,-546.04,0.00020547,2]
[368250701,1751073041973,-460.0,0.00020547,2]
[368250702,1751073041983,-1362.65,0.00020547,2]
[368250703,1751073041992,-1983.99,0.00020547,2]
[368250704,1751073042002,-460.0,0.00020547,2]
[368250705,1751073042012,-460.0,0.00020547,2]
[368250706,1751073042021,-745.95,0.00020547,2]
[368250707,1751073042031,-4509.11,0.00020547,2]
[368250708,1751073042040,-460.0,0.00020547,2]
[368250709,1751073042050,-496.99096706,0.00020547,2]
[368250710,1751073042059,-2649.6,0.00020547,2]
[368250711,1751073042068,-460.0,0.00020547,2]
[368250712,1751073042078,-532.39,0.00020547,2]
[368250713,1751073042087,-460.0,0.00020547,2]
[368250714,1751073042096,-4260.63,0.00020547,2]
[368250715,1751073042106,-548.37,0.00020547,2]
[368250716,1751073042115,-885.19,0.00020547,2]
[368250717,1751073042124,-502.26,0.00020547,2]
[368250718,1751073042133,-1031.43,0.00020547,2]
[368250719,1751073042144,-460.0,0.00020547,2]
[368250720,1751073042154,-460.0,0.00020547,2]
[368250721,1751073042163,-532.31,0.00020547,2]
[368250722,1751073042173,-2647.1,0.00020547,2]
[368250723,1751073042188,-497.42,0.00020547,2]
[368250724,1751073042198,-1028.19,0.00020547,2]
[368250725,1751073042207,-2435.39,0.00020547,2]
[368250726,1751073042217,-1372.11,0.00020547,2]
[368250727,1751073042226,-514.85,0.00020547,2]
[368250728,1751073042235,-835.97,0.00020547,2]
[368250729,1751073042244,-2961.6,0.00020547,2]
[368250730,1751073042253,-525.47,0.00020547,2]
[368250731,1751073042263,-460.0,0.00020547,2]
[368250732,1751073042272,-1459.3,0.00020547,2]
[368250733,1751073042282,-1530.08,0.00020547,2]
[368250734,1751073042291,-460.0,0.00020547,2]
[368250735,1751073042428,-460.0,0.00020547,2]
[368250736,1751073042439,-482.37,0.00020547,2]
[368250737,1751073042448,-1049.99,0.00020547,2]
[368250738,1751073042458,-460.0,0.00020547,2]
[368250739,1751073042468,-645.83,0.00020547,2]
[368250740,1751073042478,-460.0,0.00020547,2]
[368250741,1751073042487,-1921.92,0.00020547,2]
[368250742,1751073042498,-1535.0,0.00020547,2]
[368250743,1751073042507,-580.56,0.00020547,2]
[368250744,1751073042517,-460.0,0.00020547,2]
[368250745,1751073042526,-460.0,0.00020547,2]
[368250746,1751073042536,-560.03,0.00020547,2]
[368250747,1751073042545,-460.0,0.00020547,2]
[368250748,1751073042555,-256.24156532,0.00020547,2]
[368250749,1751073042564,-834.51,0.00020547,2]
[368250750,1751073042574,-1911.92,0.00020547,2]
[368250751,1751073042583,-613.64,0.00020547,2]
[368250752,1751073042592,-460.0,0.00020547,2]
[368250753,1751073042601,-460.0,0.00020547,2]
[368250754,1751073042610,-598.93,0.00020547,2]
[368250755,1751073042619,-2082.43,0.00020547,2]
[368250756,1751073042628,-574.78,0.00020547,2]
[368250757,1751073042638,-2576.25,0.00020547,2]
[368250758,1751073042647,-460.0,0.00020547,2]
[368250759,1751073042656,-956.52,0.00020547,2]
[368250760,1751073042665,-3687.37,0.000206,2]
[368250761,1751073042675,-430.99871146,0.0002061,2]
[368250762,1751073042684,-847.04181546,0.00020624,3]
[368250763,1751073042693,-160.0,0.00020624,3]
[368250764,1751073042703,-12562.41216491,0.00020624,3]
[368250765,1751073042712,-8670.32948988,0.00020624,3]
[368250766,1751073042721,-460.0,0.00020821,2]
[368250767,1751073042732,-460.0,0.00020821,2]
[368250768,1751073042745,-460.0,0.00020821,2]
[368250769,1751073042755,-460.0,0.00020821,2]
[368250770,1751073042765,-460.0,0.00020821,2]
[368250772,1751073042775,-750.3,0.00020821,2]
[368250774,1751073042786,-460.0,0.00020821,2]
[368250776,1751073042795,-460.0,0.00020821,2]
[368250778,1751073042805,-391.17,0.00020821,2]
[368250780,1751073042815,-460.0,0.00020821,2]
[368250782,1751073042825,-244.2612308,0.00020821,2]
[368250783,1751073042835,-649.34,0.00020821,2]
[368250784,1751073042844,-1981.49,0.00020821,2]
[368250785,1751073042854,-460.0,0.00020821,2]
[368250786,1751073042863,-790.84,0.00020821,2]
[368250787,1751073042873,-562.1,0.00020821,2]
[368250788,1751073042882,-546.04,0.00020821,2]
[368250789,1751073042891,-460.0,0.00020821,2]
[368250790,1751073042901,-1362.65,0.00020821,2]
[368250791,1751073042912,-1983.99,0.00020821,2]
[368250792,1751073042922,-460.0,0.00020821,2]
[368250793,1751073042931,-460.0,0.00020821,2]
[368250794,1751073042941,-745.95,0.00020821,2]
[368250795,1751073042950,-4509.11,0.00020821,2]
[368250796,1751073042959,-460.0,0.00020821,2]
[368250797,1751073042968,-2649.6,0.00020821,2]
[368250798,1751073042978,-460.0,0.00020821,2]
[368250799,1751073042987,-532.39,0.00020821,2]
[368250800,1751073042998,-460.0,0.00020821,2]
[368250801,1751073043008,-4260.63,0.00020821,2]
[368250802,1751073043017,-885.19,0.00020821,2]
[368250803,1751073043026,-502.26,0.00020821,2]
[368250804,1751073043035,-548.37,0.00020821,2]
[368250806,1751073043044,-1031.43,0.00020821,2]
[368250807,1751073043054,-460.0,0.00020821,2]
[368250808,1751073043063,-460.0,0.00020821,2]
[368250809,1751073043072,-532.31,0.00020821,2]
[368250810,1751073043082,-2647.1,0.00020821,2]
[368250811,1751073043091,-497.42,0.00020821,2]
[368250812,1751073043102,-1028.19,0.00020821,2]
[368250813,1751073043111,-2435.39,0.00020821,2]
[368250814,1751073043121,-1372.11,0.00020821,2]
[368250815,1751073043130,-514.85,0.00020821,2]
[368250816,1751073043140,-835.97,0.00020821,2]
[368250817,1751073043149,-2961.6,0.00020821,2]
[368250818,1751073043159,-525.47,0.00020821,2]
[368250819,1751073043168,-460.0,0.00020821,2]
[368250820,1751073043178,-1459.3,0.00020821,2]
[368250821,1751073043187,-1530.08,0.00020821,2]
[368250822,1751073043197,-460.0,0.00020821,2]
[368250823,1751073043207,-460.0,0.00020821,2]
[368250824,1751073043216,-482.37,0.00020821,2]
[368250825,1751073043226,-1049.99,0.00020821,2]
[368250826,1751073043235,-460.0,0.00020821,2]
[368250827,1751073043245,-645.83,0.00020821,2]
[368250828,1751073043256,-460.0,0.00020821,2]
[368250829,1751073043265,-1921.92,0.00020821,2]
[368250830,1751073043275,-580.56,0.00020821,2]
[368250831,1751073043283,-1535.0,0.00020821,2]
[368250832,1751073043293,-460.0,0.00020821,2]
[368250833,1751073043302,-460.0,0.00020821,2]
[368250834,1751073043312,-560.03,0.00020821,2]
[368250835,1751073043322,-460.0,0.00020821,2]
[368250836,1751073043331,-834.51,0.00020821,2]
[368250837,1751073043340,-1911.92,0.00020821,2]
[368250838,1751073043349,-460.0,0.00020821,2]
[368250839,1751073043358,-613.64,0.00020821,2]
[368250840,1751073043368,-598.93,0.00020821,2]
[368250841,1751073043377,-2082.43,0.00020821,2]
[368250842,1751073043386,-574.78,0.00020821,2]
[368250843,1751073043395,-2576.25,0.00020821,2]
[368250844,1751073043404,-460.0,0.00020821,2]
[368250845,1751073043413,-956.52,0.00020821,2]
[368250846,1751073043423,-1000.0,0.00020826,2]
[368250847,1751073043432,-8670.32948988,0.00020866,4]
[368250849,1751073043441,-420.0,0.00020899,2]
[368250851,1751073043451,-2863.58676185,0.00020961,2]
[368250853,1751073043460,-300.0,0.00020984,2]
[368250855,1751073043469,-522.9,0.00020986,3]
[368250857,1751073043479,-3000.0,0.00021,2]
[368250859,1751073043488,-151.0,0.00021,3]
[368250862,1751073043498,-3000.0,0.0002101,2]
[368250864,1751073043507,-3000.0,0.0002102,2]
[368250866,1751073043516,-3000.0,0.0002103,2]
[368250868,1751073043525,-207.4,0.00021035,2]
[368250870,1751073043534,-5000.0,0.00021035,2]
[368250872,1751073043545,-666.0,0.00021035,2]
[368250875,1751073043554,-500.0,0.00021035,2]
[368250877,1751073043563,-500.0,0.00021035,2]
[368250879,1751073043572,-500.0,0.00021035,2]
[368250881,1751073043581,-500.0,0.00021035,2]
[368250883,1751073043590,-500.0,0.00021035,2]
[368250885,1751073043599,-500.0,0.00021035,2]
[368250887,1751073043608,-500.0,0.00021035,2]
[368250889,1751073043617,-500.0,0.00021035,2]
[368250891,1751073043626,-500.0,0.00021035,2]
[368250893,1751073043635,-500.0,0.00021035,2]
[368250895,1751073043644,-500.0,0.00021035,2]
[368250897,1751073043654,-500.0,0.00021035,2]
[368250899,1751073043663,-500.0,0.00021035,2]
[368250901,1751073043673,-500.0,0.00021035,2]
[368250903,1751073043682,-500.0,0.00021035,2]
[368250905,1751073043691,-500.0,0.00021035,2]
[368250907,1751073043701,-500.0,0.00021035,2]
[368250910,1751073043710,-500.0,0.00021035,2]
[368250912,1751073043720,-16600.45794012,0.00021035,2]
[368250914,1751073043729,-3000.0,0.0002104,2]
[368250916,1751073043741,-500.0,0.00021042,2]
[368250918,1751073043751,-3000.0,0.0002105,2]
[368250920,1751073043760,-3000.0,0.0002106,2]
[368250922,1751073043769,-3000.0,0.0002107,2]
[368250924,1751073043779,-3000.0,0.0002108,2]
[368250926,1751073043788,-690.642,0.0002109,2]
[368250928,1751073043797,-3000.0,0.0002109,2]
[368250931,1751073043807,-460.0,0.00021095,2]
[368250934,1751073043816,-460.0,0.00021095,2]
[368250936,1751073043825,-460.0,0.00021095,2]
[368250937,1751073043834,-460.0,0.00021095,2]
[368250938,1751073043843,-750.3,0.00021095,2]
[368250939,1751073043852,-460.0,0.00021095,2]
[368250940,1751073043861,-460.0,0.00021095,2]
[368250941,1751073043870,-460.0,0.00021095,2]
[368250942,1751073043879,-649.34,0.00021095,2]
[368250943,1751073043890,-1981.49,0.00021095,2]
[368250944,1751073043900,-460.0,0.00021095,2]
[368250945,1751073043911,-790.84,0.00021095,2]
[368250946,1751073043920,-562.1,0.00021095,2]
[368250947,1751073043929,-546.04,0.00021095,2]
[368250948,1751073043939,-460.0,0.00021095,2]
[368250949,1751073043948,-1362.65,0.00021095,2]
[368250950,1751073043958,-1983.99,0.00021095,2]
[368250951,1751073043967,-460.0,0.00021095,2]
[368250952,1751073043976,-460.0,0.00021095,2]
[368250953,1751073043985,-745.95,0.00021095,2]
[368250954,1751073043994,-4509.11,0.00021095,2]
[368250955,1751073044003,-460.0,0.00021095,2]
[368250956,1751073044012,-2649.6,0.00021095,2]
[368250958,1751073044021,-239.57168942,0.00021095,2]
[368250960,1751073044030,-532.39,0.00021095,2]
[368250962,1751073044039,-183.79927372,0.00021095,2]
[368250964,1751073044049,-4260.63,0.00021095,2]
[368250966,1751073044058,-885.19,0.00021095,2]
[368250968,1751073044067,-502.26,0.00021095,2]
[368250970,1751073044076,-548.37,0.00021095,2]
[368250972,1751073044085,-1031.43,0.00021095,2]
[368250974,1751073044094,-460.0,0.00021095,2]
[368250976,1751073044103,-460.0,0.00021095,2]
[368250978,1751073044112,-532.31,0.00021095,2]
[368250980,1751073044122,-2647.1,0.00021095,2]
[368250982,1751073044131,-497.42,0.00021095,2]
[368250984,1751073044140,-1028.19,0.00021095,2]
[368250986,1751073044149,-2435.39,0.00021095,2]
[368250988,1751073044159,-1372.11,0.00021095,2]
[368250990,1751073044168,-514.85,0.00021095,2]
[368250992,1751073044178,-835.97,0.00021095,2]
[368250994,1751073044186,-2961.6,0.00021095,2]
[368250996,1751073044196,-525.47,0.00021095,2]
[368250998,1751073044205,-460.0,0.00021095,2]
[368251000,1751073044214,-1459.3,0.00021095,2]
[368251002,1751073044223,-1530.08,0.00021095,2]
[368251004,1751073044232,-460.0,0.00021095,2]
[368251006,1751073044242,-460.0,0.00021095,2]
[368251008,1751073044251,-482.37,0.00021095,2]
[368251010,1751073044260,-1049.99,0.00021095,2]
[368251012,1751073044269,-460.0,0.00021095,2]
[368251014,1751073044278,-645.83,0.00021095,2]
[368251016,1751073044288,-460.0,0.00021095,2]
[368251018,1751073044297,-1921.92,0.00021095,2]
[368251020,1751073044307,-580.56,0.00021095,2]
[368251022,1751073044316,-1535.0,0.00021095,2]
[368251024,1751073044325,-460.0,0.00021095,2]
[368251026,1751073044334,-460.0,0.00021095,2]
[368251028,1751073044343,-560.03,0.00021095,2]
[368251029,1751073044352,-460.0,0.00021095,2]
[368251031,1751073044362,-834.51,0.00021095,2]
[368251032,1751073044371,-1911.92,0.00021095,2]
[368251033,1751073044381,-460.0,0.00021095,2]
[368251034,1751073044390,-613.64,0.00021095,2]
[368251035,1751073044399,-598.93,0.00021095,2]
[368251036,1751073044409,-2082.43,0.00021095,2]
[368251037,1751073044418,-574.78,0.00021095,2]
[368251038,1751073044427,-2576.25,0.00021095,2]
[368251039,1751073044436,-460.0,0.00021095,2]
[368251040,1751073044446,-956.52,0.00021095,2]
[368251041,1751073044456,-3000.0,0.000211,2]
[368251042,1751073044465,-8670.32948988,0.00021107,4]
[368251043,1751073044475,-3000.0,0.0002111,2]
[368251044,1751073044485,-3000.0,0.0002112,2]
[368251045,1751073044494,-3000.0,0.0002113,2]
[368251046,1751073044503,-3000.0,0.0002114,2]
[368251047,1751073044513,-716.195754,0.00021145,2]
[368251048,1751073044524,-3000.0,0.0002115,2]
[368251049,1751073044536,-3000.0,0.0002116,2]
[368251050,1751073044546,-3000.0,0.0002117,2]
[368251051,1751073044557,-306.0,0.00021178,2]
[368251052,1751073044567,-572.3607022,0.00021178,2]
[368251053,1751073044576,-177.4788171,0.00021178,2]
[368251054,1751073044586,-153.0,0.00021178,2]
[368251055,1751073044595,-177.4788171,0.00021178,2]
[368251056,1751073044604,-168.4639677,0.00021178,2]
[368251057,1751073044615,-153.0,0.00021178,2]
[368251058,1751073044627,-306.0,0.00021178,2]
[368251059,1751073044636,-5632.614296,0.0002118,2]
[368251060,1751073044647,-742.6949969,0.000212,2]
[368251061,1751073044658,-770.17471178,0.00021255,2]
[368251062,1751073044667,-151.0,0.000213,4]
[368251063,1751073044676,-798.67117612,0.0002131,2]
[368251064,1751073044685,-522.9,0.00021321,4]
[368251065,1751073044694,-366.0585355,0.00021342,2]
[368251066,1751073044703,-8670.32948988,0.00021348,5]
[368251067,1751073044713,-828.22200964,0.00021365,2]
[368251068,1751073044723,-460.0,0.00021369,2]
[368251069,1751073044736,-460.0,0.00021369,2]
[368251070,1751073044746,-460.0,0.00021369,2]
[368251071,1751073044755,-235.95737783,0.00021369,2]
[368251072,1751073044764,-750.3,0.00021369,2]
[368251073,1751073044775,-460.0,0.00021369,2]
[368251074,1751073044784,-460.0,0.00021369,2]
[368251075,1751073044794,-460.0,0.00021369,2]
[368251076,1751073044803,-649.34,0.00021369,2]
[368251077,1751073044813,-1981.49,0.00021369,2]
[368251078,1751073044822,-460.0,0.00021369,2]
[368251079,1751073044831,-790.84,0.00021369,2]
[368251080,1751073044841,-562.1,0.00021369,2]
[368251081,1751073044851,-546.04,0.00021369,2]
[368251082,1751073044859,-460.0,0.00021369,2]
[368251083,1751073044869,-1983.99,0.00021369,2]
[368251084,1751073044879,-1362.65,0.00021369,2]
[368251085,1751073044889,-460.0,0.00021369,2]
[368251086,1751073044901,-460.0,0.00021369,2]
[368251087,1751073044911,-4509.11,0.00021369,2]
[368251088,1751073044922,-460.0,0.00021369,2]
[368251089,1751073044932,-745.95,0.00021369,2]
[368251090,1751073044942,-2649.6,0.00021369,2]
[368251091,1751073044952,-532.39,0.00021369,2]
[368251092,1751073044961,-4260.63,0.00021369,2]
[368251093,1751073044971,-885.19,0.00021369,2]
[368251094,1751073044981,-502.26,0.00021369,2]
[368251095,1751073044990,-548.37,0.00021369,2]
[368251096,1751073045000,-1031.43,0.00021369,2]
[368251097,1751073045010,-460.0,0.00021369,2]
[368251098,1751073045019,-532.31,0.00021369,2]
[368251099,1751073045028,-483.62435578,0.00021369,2]
[368251100,1751073045038,-497.42,0.00021369,2]
[368251101,1751073045048,-2647.1,0.00021369,2]
[368251102,1751073045058,-1028.19,0.00021369,2]
[368251103,1751073045067,-2435.39,0.00021369,2]
[368251104,1751073045076,-1372.11,0.00021369,2]
[368251105,1751073045085,-514.85,0.00021369,2]
[368251106,1751073045094,-835.97,0.00021369,2]
[368251107,1751073045103,-2961.6,0.00021369,2]
[368251108,1751073045113,-525.47,0.00021369,2]
[368251109,1751073045122,-1459.3,0.00021369,2]
[368251110,1751073045132,-460.0,0.00021369,2]
[368251111,1751073045142,-1530.08,0.00021369,2]
[368251112,1751073045151,-460.0,0.00021369,2]
[368251113,1751073045161,-241.77275662,0.00021369,2]
[368251114,1751073045170,-482.37,0.00021369,2]
[368251115,1751073045180,-1049.99,0.00021369,2]
[368251116,1751073045189,-460.0,0.00021369,2]
[368251117,1751073045198,-645.83,0.00021369,2]
[368251118,1751073045208,-460.0,0.00021369,2]
[368251119,1751073045218,-1921.92,0.00021369,2]
[368251120,1751073045227,-580.56,0.00021369,2]
[368251121,1751073045237,-1535.0,0.00021369,2]
[368251122,1751073045246,-460.0,0.00021369,2]
[368251123,1751073045373,-460.0,0.00021369,2]
[368251124,1751073045382,-560.03,0.00021369,2]
[368251125,1751073045392,-460.0,0.00021369,2]
[368251126,1751073045401,-834.51,0.00021369,2]
[368251127,1751073045411,-1911.92,0.00021369,2]
[368251128,1751073045421,-460.0,0.00021369,2]
[368251129,1751073045430,-613.64,0.00021369,2]
[368251130,1751073045440,-598.93,0.00021369,2]
[368251131,1751073045449,-2082.43,0.00021369,2]
[368251132,1751073045459,-574.78,0.00021369,2]
[368251133,1751073045469,-2576.25,0.00021369,2]
[368251134,1751073045479,-460.0,0.00021369,2]
[368251135,1751073045488,-956.52,0.00021369,2]
[368251136,1751073045497,-611.314,0.00021401,2]
[368251137,1751073045507,-161.47645334,0.0002142,2]
[368251138,1751073045516,-2863.58676185,0.00021475,2]
[368251139,1751073045526,-155.01070379,0.00021507,2]
[368251140,1751073045536,-168.0,0.00021568,2]
[368251141,1751073045545,-5000.0,0.00021583,2]
[368251142,1751073045555,-8670.32948988,0.0002159,5]
[368251143,1751073045566,-500.0,0.00021604,2]
[368251144,1751073045575,-500.0,0.00021612,2]